[Event "Titled Tuesday Blitz December 06 Early 2022"]
[White "Hoffmann, Asa"]
[Black "Lohani, Sujana"]
[WhiteFideId "2001470"]
[BlackFideId "12311987"]
[WhiteElo "2117"]
[BlackElo "1718"]
[Result "1-0"]
[Round "05"]
[TimeControl "180+1"]
[Date "2022.12.07"]
[WhiteClock "0:00:47"]
[BlackClock "0:00:04"]

1. d4 {[%clk 0:02:57]}  g6 {[%clk 0:03:00]} 2. e4 {[%clk 0:02:56]}  Bg7 {[%clk 0:03:01]} 3. Be3 {[%clk 0:02:56]}  d6 {[%clk 0:03:02]} 4. Qd2 {[%clk 0:02:52]}  c6 {[%clk 0:03:02]} 5. Nc3 {[%clk 0:02:51]}  b5 {[%clk 0:03:02]} 6. f3 {[%clk 0:02:51]}  a6 {[%clk 0:02:48]} 7. a3 {[%clk 0:02:50]}  Nd7 {[%clk 0:02:48]} 8. Nh3 {[%clk 0:02:49]}  Qb6 {[%clk 0:02:40]} 9. Be2 {[%clk 0:02:45]}  c5 {[%clk 0:02:39]} 10. dxc5 {[%clk 0:02:37]}  Nxc5 {[%clk 0:02:39]} 11. Rd1 {[%clk 0:02:10]}  Qc7 {[%clk 0:02:14]} 12. Nf4 {[%clk 0:02:05]}  Bb7 {[%clk 0:02:12]} 13. O-O {[%clk 0:02:04]}  Nf6 {[%clk 0:02:04]} 14. Nfd5 {[%clk 0:01:54]}  Nxd5 {[%clk 0:02:03]} 15. exd5 {[%clk 0:01:53]}  O-O {[%clk 0:02:01]} 16. Bh6 {[%clk 0:01:52]}  Nd7 {[%clk 0:01:53]} 17. Bxg7 {[%clk 0:01:49]}  Kxg7 {[%clk 0:01:53]} 18. Qd4+ {[%clk 0:01:49]}  Nf6 {[%clk 0:01:52]} 19. f4 {[%clk 0:01:43]}  Rfc8 {[%clk 0:01:47]} 20. Rfe1 {[%clk 0:01:38]}  Qc5 {[%clk 0:01:46]} 21. Bf3 {[%clk 0:01:38]}  Qxd4+ {[%clk 0:01:39]} 22. Rxd4 {[%clk 0:01:37]}  Rc7 {[%clk 0:01:39]} 23. g4 {[%clk 0:01:36]}  Rac8 {[%clk 0:01:36]} 24. g5 {[%clk 0:01:32]}  Ng8 {[%clk 0:01:26]} 25. h4 {[%clk 0:01:31]}  Rc5 {[%clk 0:01:25]} 26. Kf2 {[%clk 0:01:28]}  Rc4 {[%clk 0:01:24]} 27. Rxc4 {[%clk 0:01:27]}  Rxc4 {[%clk 0:01:23]} 28. Re4 {[%clk 0:01:26]}  Rc5 {[%clk 0:01:19]} 29. Rd4 {[%clk 0:01:20]}  Kf8 {[%clk 0:01:04]} 30. Ke3 {[%clk 0:01:17]}  Ke8 {[%clk 0:01:04]} 31. Bg4 {[%clk 0:01:14]}  Kd8 {[%clk 0:00:58]} 32. Kd3 {[%clk 0:01:13]}  Bc8 {[%clk 0:00:57]} 33. Bxc8 {[%clk 0:01:11]}  Kxc8 {[%clk 0:00:57]} 34. Ne4 {[%clk 0:01:09]}  Rc7 {[%clk 0:00:52]} 35. c4 {[%clk 0:01:08]}  bxc4+ {[%clk 0:00:42]} 36. Rxc4 {[%clk 0:01:08]}  Rxc4 {[%clk 0:00:36]} 37. Kxc4 {[%clk 0:01:08]}  Kd7 {[%clk 0:00:29]} 38. Kb4 {[%clk 0:01:08]}  e6 {[%clk 0:00:28]} 39. dxe6+ {[%clk 0:01:05]}  fxe6 {[%clk 0:00:28]} 40. Ka5 {[%clk 0:01:01]}  d5 {[%clk 0:00:27]} 41. Nd2 {[%clk 0:00:56]}  Ne7 {[%clk 0:00:26]} 42. Kxa6 {[%clk 0:00:56]}  Nf5 {[%clk 0:00:20]} 43. Kb7 {[%clk 0:00:54]}  Nd4 {[%clk 0:00:19]} 44. a4 {[%clk 0:00:52]}  Ne2 {[%clk 0:00:12]} 45. a5 {[%clk 0:00:51]}  Nxf4 {[%clk 0:00:07]} 46. a6 {[%clk 0:00:51]}  e5 {[%clk 0:00:06]} 47. a7 {[%clk 0:00:50]}  e4 {[%clk 0:00:05]} 48. a8=Q {[%clk 0:00:50]}  e3 {[%clk 0:00:05]} 49. Qa4+ {[%clk 0:00:47]}  Kd6 {[%clk 0:00:04]} 50. Qxf4+ {[%clk 0:00:47]} 1-0


[Site "https://www.chess.com"]

[Event "Titled Tuesday Blitz December 06 Early 2022"]
[White "Jimenez Almeida, Luis David"]
[Black "Weetik, Vjacheslav"]
[WhiteFideId "22242244"]
[BlackFideId "4153472"]
[WhiteElo "2158"]
[BlackElo "2469"]
[Result "0-1"]
[Round "05"]
[TimeControl "180+1"]
[Date "2022.12.07"]
[WhiteClock "0:00:02"]
[BlackClock "0:00:07"]

1. e4 {[%clk 0:02:56]}  c6 {[%clk 0:02:57]} 2. Nc3 {[%clk 0:02:54]}  d5 {[%clk 0:02:57]} 3. Qf3 {[%clk 0:02:53]}  Nf6 {[%clk 0:02:51]} 4. e5 {[%clk 0:02:52]}  Nfd7 {[%clk 0:02:37]} 5. d4 {[%clk 0:02:48]}  e6 {[%clk 0:02:37]} 6. Nh3 {[%clk 0:02:45]}  h6 {[%clk 0:02:26]} 7. Qg3 {[%clk 0:02:42]}  c5 {[%clk 0:02:21]} 8. dxc5 {[%clk 0:02:41]}  Nxc5 {[%clk 0:02:09]} 9. Be3 {[%clk 0:02:26]}  Nc6 {[%clk 0:01:51]} 10. Bb5 {[%clk 0:02:24]}  Bd7 {[%clk 0:01:28]} 11. Bxc5 {[%clk 0:02:14]}  Bxc5 {[%clk 0:01:28]} 12. Qxg7 {[%clk 0:02:14]}  Rf8 {[%clk 0:01:26]} 13. O-O {[%clk 0:02:03]}  Qh4 {[%clk 0:01:01]} 14. Rae1 {[%clk 0:01:28]}  O-O-O {[%clk 0:00:54]} 15. Qg3 {[%clk 0:01:21]}  Qb4 {[%clk 0:00:27]} 16. Bd3 {[%clk 0:01:10]}  Rg8 {[%clk 0:00:25]} 17. Qf3 {[%clk 0:01:05]}  Qh4 {[%clk 0:00:22]} 18. Kh1 {[%clk 0:00:52]}  a6 {[%clk 0:00:19]} 19. Qf4 {[%clk 0:00:45]}  Rg4 {[%clk 0:00:18]} 20. Qf6 {[%clk 0:00:33]}  Qxf6 {[%clk 0:00:13]} 21. exf6 {[%clk 0:00:34]}  Bd4 {[%clk 0:00:13]} 22. f3 {[%clk 0:00:26]}  Rgg8 {[%clk 0:00:11]} 23. Nf4 {[%clk 0:00:21]}  Bxf6 {[%clk 0:00:11]} 24. Nd1 {[%clk 0:00:21]}  Kb8 {[%clk 0:00:08]} 25. c3 {[%clk 0:00:21]}  Ne5 {[%clk 0:00:06]} 26. Bc2 {[%clk 0:00:20]}  Bb5 {[%clk 0:00:06]} 27. Rf2 {[%clk 0:00:19]}  Bh4 {[%clk 0:00:07]} 28. g3 {[%clk 0:00:18]}  Bf6 {[%clk 0:00:07]} 29. Kg2 {[%clk 0:00:18]}  Bh8 {[%clk 0:00:04]} 30. Rd2 {[%clk 0:00:16]}  Nc4 {[%clk 0:00:04]} 31. Rf2 {[%clk 0:00:16]}  Be5 {[%clk 0:00:04]} 32. Nd3 {[%clk 0:00:15]}  Bc7 {[%clk 0:00:05]} 33. b3 {[%clk 0:00:15]}  Nd6 {[%clk 0:00:05]} 34. a4 {[%clk 0:00:15]}  Bd7 {[%clk 0:00:04]} 35. Ne3 {[%clk 0:00:15]}  Bb6 {[%clk 0:00:04]} 36. Rfe2 {[%clk 0:00:15]}  Rc8 {[%clk 0:00:05]} 37. Nd1 {[%clk 0:00:13]}  Nf5 {[%clk 0:00:04]} 38. Ne5 {[%clk 0:00:12]}  Be8 {[%clk 0:00:02]} 39. Kh3 {[%clk 0:00:12]}  Ne7 {[%clk 0:00:02]} 40. g4 {[%clk 0:00:12]}  Nc6 {[%clk 0:00:03]} 41. Nd3 {[%clk 0:00:11]}  Bd7 {[%clk 0:00:03]} 42. b4 {[%clk 0:00:11]}  Bc7 {[%clk 0:00:03]} 43. Nc5 {[%clk 0:00:10]}  Be8 {[%clk 0:00:04]} 44. b5 {[%clk 0:00:09]}  axb5 {[%clk 0:00:04]} 45. axb5 {[%clk 0:00:10]}  Na5 {[%clk 0:00:04]} 46. Nd3 {[%clk 0:00:09]}  Bd6 {[%clk 0:00:05]} 47. Ne5 {[%clk 0:00:05]}  h5 {[%clk 0:00:05]} 48. Kg3 {[%clk 0:00:04]}  hxg4 {[%clk 0:00:05]} 49. fxg4 {[%clk 0:00:05]}  f6 {[%clk 0:00:05]} 50. Kf3 {[%clk 0:00:04]}  fxe5 {[%clk 0:00:06]} 51. h4 {[%clk 0:00:03]}  e4+ {[%clk 0:00:06]} 52. Ke3 {[%clk 0:00:02]}  Nc4+ {[%clk 0:00:07]} 53. Kd4 {[%clk 0:00:02]}  Be5# {[%clk 0:00:07]} 0-1


[Site "https://www.chess.com"]

[Event "Titled Tuesday Blitz December 06 Early 2022"]
[White "Kim, Sergey"]
[Black "Chernov, Mikhail"]
[WhiteFideId "13700570"]
[BlackFideId "24143170"]
[WhiteElo "2622"]
[BlackElo "2113"]
[Result "1-0"]
[Round "05"]
[TimeControl "180+1"]
[Date "2022.12.07"]
[WhiteClock "0:01:02"]
[BlackClock "0:00:33"]

1. d4 {[%clk 0:03:00]}  d5 {[%clk 0:02:58]} 2. c4 {[%clk 0:03:01]}  c6 {[%clk 0:02:55]} 3. Nf3 {[%clk 0:03:00]}  Nf6 {[%clk 0:02:55]} 4. Qc2 {[%clk 0:03:00]}  dxc4 {[%clk 0:02:55]} 5. Qxc4 {[%clk 0:03:00]}  b5 {[%clk 0:02:56]} 6. Qc2 {[%clk 0:03:00]}  Bb7 {[%clk 0:02:56]} 7. Nbd2 {[%clk 0:02:53]}  Nbd7 {[%clk 0:02:55]} 8. e4 {[%clk 0:02:53]}  e6 {[%clk 0:02:54]} 9. a4 {[%clk 0:02:48]}  a6 {[%clk 0:02:52]} 10. Bd3 {[%clk 0:02:37]}  Be7 {[%clk 0:02:46]} 11. O-O {[%clk 0:02:36]}  h6 {[%clk 0:02:34]} 12. b3 {[%clk 0:02:29]}  O-O {[%clk 0:02:33]} 13. Bb2 {[%clk 0:02:29]}  Qb6 {[%clk 0:02:24]} 14. a5 {[%clk 0:02:26]}  Qc7 {[%clk 0:02:18]} 15. Rfc1 {[%clk 0:02:23]}  Rac8 {[%clk 0:02:17]} 16. Qd1 {[%clk 0:02:15]}  Qd8 {[%clk 0:01:55]} 17. Qe2 {[%clk 0:02:11]}  Re8 {[%clk 0:01:49]} 18. h3 {[%clk 0:02:00]}  c5 {[%clk 0:01:48]} 19. d5 {[%clk 0:01:42]}  exd5 {[%clk 0:01:44]} 20. e5 {[%clk 0:01:43]}  Bd6 {[%clk 0:01:12]} 21. Bf5 {[%clk 0:01:38]}  Bb8 {[%clk 0:01:02]} 22. Re1 {[%clk 0:01:33]}  Ne4 {[%clk 0:00:57]} 23. Nxe4 {[%clk 0:01:29]}  dxe4 {[%clk 0:00:58]} 24. Bxe4 {[%clk 0:01:30]}  Bxe4 {[%clk 0:00:57]} 25. Qxe4 {[%clk 0:01:29]}  Qc7 {[%clk 0:00:48]} 26. Rad1 {[%clk 0:01:24]}  Nf8 {[%clk 0:00:44]} 27. Qg4 {[%clk 0:01:15]}  Ne6 {[%clk 0:00:43]} 28. Bc1 {[%clk 0:01:13]}  Kh8 {[%clk 0:00:40]} 29. Qh5 {[%clk 0:01:11]}  Qe7 {[%clk 0:00:33]} 30. Bxh6 {[%clk 0:01:01]}  gxh6 {[%clk 0:00:33]} 31. Qxh6+ {[%clk 0:01:02]}  Kg8 {[%clk 0:00:33]} 32. Re4 {[%clk 0:01:02]} 1-0


[Site "https://www.chess.com"]

[Event "Titled Tuesday Blitz December 06 Early 2022"]
[White "Koellner, Ruben Gideon"]
[Black "Daneshvar, Bardiya"]
[WhiteFideId "12993093"]
[BlackFideId "12576468"]
[WhiteElo "2303"]
[BlackElo "2429"]
[Result "0-1"]
[Round "05"]
[TimeControl "180+1"]
[Date "2022.12.06"]
[WhiteClock "0:00:03"]
[BlackClock "0:00:54"]

1. d4 {[%clk 0:03:00]}  Nf6 {[%clk 0:02:59]} 2. Nf3 {[%clk 0:03:00]}  g6 {[%clk 0:02:58]} 3. Nbd2 {[%clk 0:03:00]}  Bg7 {[%clk 0:02:57]} 4. e4 {[%clk 0:03:00]}  O-O {[%clk 0:02:57]} 5. c3 {[%clk 0:02:58]}  d6 {[%clk 0:02:55]} 6. Bc4 {[%clk 0:02:58]}  a6 {[%clk 0:02:51]} 7. O-O {[%clk 0:02:57]}  b5 {[%clk 0:02:51]} 8. Bb3 {[%clk 0:02:58]}  c5 {[%clk 0:02:50]} 9. Re1 {[%clk 0:02:56]}  Nc6 {[%clk 0:02:47]} 10. d5 {[%clk 0:02:37]}  Na5 {[%clk 0:02:45]} 11. Bc2 {[%clk 0:02:37]}  e5 {[%clk 0:02:46]} 12. a4 {[%clk 0:02:35]}  Bd7 {[%clk 0:02:44]} 13. b4 {[%clk 0:02:31]}  Nb7 {[%clk 0:02:43]} 14. a5 {[%clk 0:02:30]}  c4 {[%clk 0:02:38]} 15. Nf1 {[%clk 0:02:27]}  Kh8 {[%clk 0:02:37]} 16. Qe2 {[%clk 0:02:09]}  Ng8 {[%clk 0:02:36]} 17. N3d2 {[%clk 0:02:06]}  Qe7 {[%clk 0:02:31]} 18. f3 {[%clk 0:02:03]}  Nd8 {[%clk 0:02:31]} 19. Ne3 {[%clk 0:01:58]}  f6 {[%clk 0:02:31]} 20. g4 {[%clk 0:01:55]}  Bh6 {[%clk 0:02:30]} 21. Ndf1 {[%clk 0:01:55]}  Nf7 {[%clk 0:02:29]} 22. h4 {[%clk 0:01:51]}  Rae8 {[%clk 0:02:29]} 23. Ng2 {[%clk 0:01:47]}  Bxc1 {[%clk 0:02:29]} 24. Raxc1 {[%clk 0:01:48]}  Bc8 {[%clk 0:02:28]} 25. Ng3 {[%clk 0:01:48]}  Kg7 {[%clk 0:02:26]} 26. Qe3 {[%clk 0:01:47]}  Ngh6 {[%clk 0:02:25]} 27. Kf1 {[%clk 0:01:43]}  Qc7 {[%clk 0:02:23]} 28. Ke2 {[%clk 0:01:43]}  Re7 {[%clk 0:02:23]} 29. Kd2 {[%clk 0:01:42]}  Qa7 {[%clk 0:02:24]} 30. Qxa7 {[%clk 0:01:41]}  Rxa7 {[%clk 0:02:24]} 31. Rh1 {[%clk 0:01:41]}  Rh8 {[%clk 0:02:24]} 32. Ne3 {[%clk 0:01:39]}  Re7 {[%clk 0:02:25]} 33. Rcg1 {[%clk 0:01:38]}  Ree8 {[%clk 0:02:25]} 34. Ke2 {[%clk 0:01:38]}  Ng8 {[%clk 0:02:24]} 35. Kd2 {[%clk 0:01:36]}  Ne7 {[%clk 0:02:24]} 36. Ke2 {[%clk 0:01:23]}  Reg8 {[%clk 0:01:54]} 37. Kd2 {[%clk 0:01:23]}  Kf8 {[%clk 0:01:55]} 38. Rf1 {[%clk 0:01:19]}  h5 {[%clk 0:01:52]} 39. f4 {[%clk 0:00:37]}  hxg4 {[%clk 0:01:47]} 40. fxe5 {[%clk 0:00:36]}  fxe5 {[%clk 0:01:47]} 41. Bd1 {[%clk 0:00:35]}  Kg7 {[%clk 0:01:42]} 42. Bxg4 {[%clk 0:00:34]}  Nh6 {[%clk 0:01:42]} 43. Bxc8 {[%clk 0:00:30]}  Rxc8 {[%clk 0:01:43]} 44. h5 {[%clk 0:00:29]}  Rcf8 {[%clk 0:01:41]} 45. hxg6 {[%clk 0:00:27]}  Rxf1 {[%clk 0:01:41]} 46. Rxf1 {[%clk 0:00:26]}  Kxg6 {[%clk 0:01:42]} 47. Ngf5 {[%clk 0:00:24]}  Nhxf5 {[%clk 0:01:41]} 48. exf5+ {[%clk 0:00:16]}  Kf7 {[%clk 0:01:39]} 49. f6 {[%clk 0:00:14]}  Ng6 {[%clk 0:01:31]} 50. Nf5 {[%clk 0:00:12]}  Rh2+ {[%clk 0:01:32]} 51. Kc1 {[%clk 0:00:12]}  Nf4 {[%clk 0:01:31]} 52. Nxd6+ {[%clk 0:00:12]}  Kxf6 {[%clk 0:01:31]} 53. Ne4+ {[%clk 0:00:12]}  Ke7 {[%clk 0:01:32]} 54. Kd1 {[%clk 0:00:09]}  Nxd5 {[%clk 0:01:31]} 55. Rg1 {[%clk 0:00:09]}  Ne3+ {[%clk 0:01:30]} 56. Ke1 {[%clk 0:00:08]}  Ra2 {[%clk 0:01:30]} 57. Rg6 {[%clk 0:00:07]}  Nd5 {[%clk 0:01:17]} 58. Rxa6 {[%clk 0:00:06]}  Nf4 {[%clk 0:01:17]} 59. Rb6 {[%clk 0:00:06]}  Ng2+ {[%clk 0:01:17]} 60. Kd1 {[%clk 0:00:05]}  Ne3+ {[%clk 0:01:18]} 61. Kc1 {[%clk 0:00:06]}  Rc2+ {[%clk 0:01:16]} 62. Kb1 {[%clk 0:00:06]}  Rh2 {[%clk 0:01:15]} 63. Rxb5 {[%clk 0:00:05]}  Ke6 {[%clk 0:01:16]} 64. a6 {[%clk 0:00:05]}  Rh8 {[%clk 0:01:06]} 65. a7 {[%clk 0:00:04]}  Ra8 {[%clk 0:01:01]} 66. Ra5 {[%clk 0:00:05]}  Kd7 {[%clk 0:00:59]} 67. b5 {[%clk 0:00:05]}  Kc7 {[%clk 0:00:59]} 68. Ra4 {[%clk 0:00:04]}  Kb6 {[%clk 0:00:57]} 69. Nd6 {[%clk 0:00:04]}  Nd5 {[%clk 0:00:57]} 70. Nxc4+ {[%clk 0:00:03]}  Kxb5 {[%clk 0:00:58]} 71. Nb6 {[%clk 0:00:02]}  Nxb6 {[%clk 0:00:52]} 72. Re4 {[%clk 0:00:03]}  Nc4 {[%clk 0:00:52]} 73. Kc2 {[%clk 0:00:01]}  Rxa7 {[%clk 0:00:53]} 74. Kb3 {[%clk 0:00:02]}  Ra3+ {[%clk 0:00:53]} 75. Kc2 {[%clk 0:00:02]}  Ra2+ {[%clk 0:00:54]} 76. Kd3 {[%clk 0:00:03]}  Rd2# {[%clk 0:00:54]} 0-1


[Site "https://www.chess.com"]

[Event "Titled Tuesday Blitz December 06 Early 2022"]
[White "Krzywda, Andrzej"]
[Black "Aldokhin, Ivan"]
[WhiteFideId "1114565"]
[BlackFideId "24115720"]
[WhiteElo "2149"]
[BlackElo "2313"]
[Result "0-1"]
[Round "05"]
[TimeControl "180+1"]
[Date "2022.12.07"]
[WhiteClock "0:00:03"]
[BlackClock "0:00:03"]

1. d4 {[%clk 0:02:59]}  Nf6 {[%clk 0:02:59]} 2. c4 {[%clk 0:02:59]}  g6 {[%clk 0:02:59]} 3. Nc3 {[%clk 0:02:59]}  Bg7 {[%clk 0:03:00]} 4. Nf3 {[%clk 0:02:59]}  d6 {[%clk 0:03:00]} 5. g3 {[%clk 0:02:59]}  O-O {[%clk 0:03:01]} 6. Bg2 {[%clk 0:03:00]}  Nc6 {[%clk 0:03:01]} 7. O-O {[%clk 0:03:00]}  Bf5 {[%clk 0:03:02]} 8. Ne1 {[%clk 0:02:59]}  e5 {[%clk 0:02:57]} 9. d5 {[%clk 0:02:58]}  Nb8 {[%clk 0:02:40]} 10. e4 {[%clk 0:02:58]}  Bg4 {[%clk 0:02:37]} 11. f3 {[%clk 0:02:57]}  Bd7 {[%clk 0:02:37]} 12. Be3 {[%clk 0:02:55]}  Nh5 {[%clk 0:02:31]} 13. c5 {[%clk 0:02:42]}  f5 {[%clk 0:02:28]} 14. exf5 {[%clk 0:02:35]}  gxf5 {[%clk 0:02:27]} 15. cxd6 {[%clk 0:02:34]}  cxd6 {[%clk 0:02:27]} 16. f4 {[%clk 0:02:29]}  exf4 {[%clk 0:02:20]} 17. gxf4 {[%clk 0:02:24]}  Nf6 {[%clk 0:02:06]} 18. Bd4 {[%clk 0:02:21]}  Na6 {[%clk 0:01:59]} 19. Nf3 {[%clk 0:02:20]}  h6 {[%clk 0:01:53]} 20. Nh4 {[%clk 0:02:17]}  Ng4 {[%clk 0:01:33]} 21. Nf3 {[%clk 0:02:12]}  Re8 {[%clk 0:01:26]} 22. Bxg7 {[%clk 0:02:11]}  Kxg7 {[%clk 0:01:25]} 23. Qd4+ {[%clk 0:02:01]}  Qf6 {[%clk 0:01:25]} 24. Rae1 {[%clk 0:01:55]}  Nc5 {[%clk 0:01:16]} 25. b4 {[%clk 0:01:44]}  Qxd4+ {[%clk 0:01:04]} 26. Nxd4 {[%clk 0:01:45]}  Nd3 {[%clk 0:01:04]} 27. Rd1 {[%clk 0:01:19]}  Nxb4 {[%clk 0:00:53]} 28. Rb1 {[%clk 0:01:19]}  a5 {[%clk 0:00:54]} 29. a3 {[%clk 0:01:19]}  Na6 {[%clk 0:00:54]} 30. Rxb7 {[%clk 0:01:18]}  Nc5 {[%clk 0:00:55]} 31. Rc7 {[%clk 0:01:18]}  Kf6 {[%clk 0:00:27]} 32. Bh3 {[%clk 0:01:03]}  Re3 {[%clk 0:00:19]} 33. Rf3 {[%clk 0:00:48]}  Rg8 {[%clk 0:00:16]} 34. Bxg4 {[%clk 0:00:40]}  Rxg4+ {[%clk 0:00:15]} 35. Kf2 {[%clk 0:00:36]}  Rxc3 {[%clk 0:00:06]} 36. Rxc3 {[%clk 0:00:31]}  Rxf4+ {[%clk 0:00:06]} 37. Kg3 {[%clk 0:00:22]}  Rxd4 {[%clk 0:00:04]} 38. R3xc5 {[%clk 0:00:22]}  dxc5 {[%clk 0:00:02]} 39. Rxd7 {[%clk 0:00:23]}  Ke5 {[%clk 0:00:03]} 40. Ra7 {[%clk 0:00:17]}  Rd3+ {[%clk 0:00:03]} 41. Kf2 {[%clk 0:00:16]}  Rxa3 {[%clk 0:00:04]} 42. Ra6 {[%clk 0:00:15]}  Kxd5 {[%clk 0:00:04]} 43. Rxh6 {[%clk 0:00:16]}  a4 {[%clk 0:00:04]} 44. Ra6 {[%clk 0:00:15]}  Ke4 {[%clk 0:00:04]} 45. h4 {[%clk 0:00:15]}  f4 {[%clk 0:00:04]} 46. h5 {[%clk 0:00:15]}  Ra2+ {[%clk 0:00:05]} 47. Ke1 {[%clk 0:00:15]}  Rh2 {[%clk 0:00:04]} 48. Rxa4+ {[%clk 0:00:13]}  Ke5 {[%clk 0:00:04]} 49. Ra5 {[%clk 0:00:13]}  Kd4 {[%clk 0:00:04]} 50. Ra4+ {[%clk 0:00:11]}  c4 {[%clk 0:00:05]} 51. Ra5 {[%clk 0:00:10]}  c3 {[%clk 0:00:05]} 52. Ra4+ {[%clk 0:00:09]}  Ke3 {[%clk 0:00:05]} 53. Kd1 {[%clk 0:00:07]}  f3 {[%clk 0:00:05]} 54. Ra8 {[%clk 0:00:03]}  c2+ {[%clk 0:00:03]} 55. Kc1 {[%clk 0:00:03]}  f2 {[%clk 0:00:03]} 56. Re8+ {[%clk 0:00:03]}  Kf3 {[%clk 0:00:03]} 57. Rf8+ {[%clk 0:00:03]}  Kg2 {[%clk 0:00:04]} 58. Rg8+ {[%clk 0:00:03]}  Kh1 {[%clk 0:00:04]} 59. Rf8 {[%clk 0:00:02]}  Kg1 {[%clk 0:00:04]} 60. Rg8+ {[%clk 0:00:03]}  Rg2 {[%clk 0:00:03]} 0-1


[Site "https://www.chess.com"]

[Event "Titled Tuesday Blitz December 06 Early 2022"]
[White "Lamaze, Simon"]
[Black "Bok, Benjamin"]
[WhiteFideId "36069264"]
[BlackFideId "1017063"]
[WhiteElo "2272"]
[BlackElo "2658"]
[Result "0-1"]
[Round "05"]
[TimeControl "180+1"]
[Date "2022.12.07"]
[WhiteClock "0:02:16"]
[BlackClock "0:01:35"]

1. e4 {[%clk 0:02:55]}  c5 {[%clk 0:02:58]} 2. Nf3 {[%clk 0:02:56]}  d6 {[%clk 0:02:59]} 3. d4 {[%clk 0:02:56]}  cxd4 {[%clk 0:03:00]} 4. Nxd4 {[%clk 0:02:57]}  Nf6 {[%clk 0:03:00]} 5. Nc3 {[%clk 0:02:57]}  a6 {[%clk 0:03:01]} 6. Bd2 {[%clk 0:02:57]}  Nc6 {[%clk 0:02:51]} 7. Nxc6 {[%clk 0:02:55]}  bxc6 {[%clk 0:02:52]} 8. Bd3 {[%clk 0:02:55]}  g6 {[%clk 0:02:51]} 9. Qe2 {[%clk 0:02:56]}  Bg7 {[%clk 0:02:51]} 10. O-O {[%clk 0:02:56]}  O-O {[%clk 0:02:51]} 11. Na4 {[%clk 0:02:54]}  Qc7 {[%clk 0:02:48]} 12. c4 {[%clk 0:02:54]}  Nd7 {[%clk 0:02:45]} 13. Rab1 {[%clk 0:02:37]}  c5 {[%clk 0:02:43]} 14. Nc3 {[%clk 0:02:32]}  e6 {[%clk 0:02:41]} 15. f4 {[%clk 0:02:30]}  Bb7 {[%clk 0:02:40]} 16. b3 {[%clk 0:02:25]}  Rad8 {[%clk 0:02:22]} 17. Rbe1 {[%clk 0:02:24]}  Nb8 {[%clk 0:02:12]} 18. f5 {[%clk 0:02:24]}  Be5 {[%clk 0:02:11]} 19. Bh6 {[%clk 0:02:23]}  Bxc3 {[%clk 0:02:10]} 20. f6 {[%clk 0:02:18]}  Nd7 {[%clk 0:02:02]} 21. Bg7 {[%clk 0:02:19]}  d5 {[%clk 0:01:36]} 22. Qe3 {[%clk 0:02:16]}  Bd4 {[%clk 0:01:35]} 0-1


[Site "https://www.chess.com"]

[Event "Titled Tuesday Blitz December 06 Early 2022"]
[White "Lauridsen, Jesper Morch"]
[Black "Pein, Jonathan"]
[WhiteFideId "1401890"]
[BlackFideId "417092"]
[WhiteElo "2259"]
[BlackElo "2225"]
[Result "0-1"]
[Round "05"]
[TimeControl "180+1"]
[Date "2022.12.07"]
[WhiteClock "0:00:11"]
[BlackClock "0:00:18"]

1. e4 {[%clk 0:01:53]}  c6 {[%clk 0:02:58]} 2. d4 {[%clk 0:01:53]}  d5 {[%clk 0:02:58]} 3. exd5 {[%clk 0:01:53]}  cxd5 {[%clk 0:02:58]} 4. c4 {[%clk 0:01:54]}  g6 {[%clk 0:02:55]} 5. Nc3 {[%clk 0:01:55]}  Nf6 {[%clk 0:02:53]} 6. Nf3 {[%clk 0:01:55]}  Bg4 {[%clk 0:02:52]} 7. cxd5 {[%clk 0:01:55]}  Nxd5 {[%clk 0:02:51]} 8. Bb5+ {[%clk 0:01:54]}  Nc6 {[%clk 0:02:49]} 9. Qa4 {[%clk 0:01:52]}  Rc8 {[%clk 0:02:36]} 10. Ne5 {[%clk 0:01:51]}  Nxc3 {[%clk 0:02:26]} 11. bxc3 {[%clk 0:01:41]}  Bd7 {[%clk 0:02:25]} 12. Nxc6 {[%clk 0:01:08]}  bxc6 {[%clk 0:02:16]} 13. Ba6 {[%clk 0:01:01]}  Rb8 {[%clk 0:02:08]} 14. Bf4 {[%clk 0:01:01]}  Rb6 {[%clk 0:02:03]} 15. O-O {[%clk 0:00:41]}  Bg7 {[%clk 0:02:02]} 16. Bc4 {[%clk 0:00:26]}  O-O {[%clk 0:02:00]} 17. Qxa7 {[%clk 0:00:25]}  Rb2 {[%clk 0:01:53]} 18. Qc7 {[%clk 0:00:24]}  Qxc7 {[%clk 0:01:44]} 19. Bxc7 {[%clk 0:00:23]}  Bf5 {[%clk 0:01:44]} 20. Ba5 {[%clk 0:00:18]}  e5 {[%clk 0:01:34]} 21. Bb4 {[%clk 0:00:18]}  Ra8 {[%clk 0:01:31]} 22. dxe5 {[%clk 0:00:16]}  Bxe5 {[%clk 0:01:32]} 23. Rfe1 {[%clk 0:00:16]}  Bf6 {[%clk 0:01:27]} 24. a4 {[%clk 0:00:16]}  c5 {[%clk 0:01:07]} 25. Bxc5 {[%clk 0:00:15]}  Bxc3 {[%clk 0:01:06]} 26. Rec1 {[%clk 0:00:15]}  Rc2 {[%clk 0:00:50]} 27. Rxc2 {[%clk 0:00:14]}  Bxc2 {[%clk 0:00:51]} 28. Rc1 {[%clk 0:00:14]}  Rxa4 {[%clk 0:00:50]} 29. Bf1 {[%clk 0:00:12]}  Ra2 {[%clk 0:00:41]} 30. Bc4 {[%clk 0:00:12]}  Ra1 {[%clk 0:00:37]} 31. Rxa1 {[%clk 0:00:11]}  Bxa1 {[%clk 0:00:38]} 32. f3 {[%clk 0:00:12]}  h5 {[%clk 0:00:37]} 33. Kf2 {[%clk 0:00:12]}  Kg7 {[%clk 0:00:37]} 34. Ke3 {[%clk 0:00:13]}  Kf6 {[%clk 0:00:23]} 35. Bd4+ {[%clk 0:00:13]}  Bxd4+ {[%clk 0:00:24]} 36. Kxd4 {[%clk 0:00:13]}  Bf5 {[%clk 0:00:23]} 37. Ke3 {[%clk 0:00:13]}  g5 {[%clk 0:00:21]} 38. h3 {[%clk 0:00:13]}  h4 {[%clk 0:00:21]} 39. Kf2 {[%clk 0:00:12]}  Be6 {[%clk 0:00:18]} 40. Bd3 {[%clk 0:00:12]}  Ke5 {[%clk 0:00:18]} 41. g3 {[%clk 0:00:12]}  Bxh3 {[%clk 0:00:17]} 42. gxh4 {[%clk 0:00:12]}  gxh4 {[%clk 0:00:18]} 43. Bh7 {[%clk 0:00:11]}  Bf5 {[%clk 0:00:18]} 44. Kg2 {[%clk 0:00:11]}  Bxh7 {[%clk 0:00:18]} 0-1


[Site "https://www.chess.com"]